Workbook

Sheet Sheet1
A1: 附件
A2: 綦江区2024年农村公路通畅工程建设计划（第一批）
A3: 序号 | B3: 街镇 | C3: 项目名称 | D3: 年报线路编码 | E3: 路线 起点 | F3: 路线 终点 | G3: 建设里程 （公里） | H3: 建设宽度 （米） | I3: 项目地址 | J3: 是否解决未通畅村民小组 | K3: 是否申报为以工代赈项目 | L3: 备注
A4: 1 | B4: 古南街道 | C4: 蟠龙村通组公路 | E4: 大丘壁 | F4: 小沟子 | G4: 3.1 | H4: 4.5 | I4: 蟠龙1、3、4、5、8、9组 | J4: 否 | K4: 否
A5: 一 | B5: 古南街道小计 | G5: =SUM(G4:G4) -> 3.1
A6: 1 | B6: 文龙街道 | C6: 春灯1.2.3组通组路 | E6: 小后湾 | F6: 王家湾 | G6: 2.2 | H6: 4.5 | I6: 春灯村1、2、3组 | J6: 否 | K6: 否
A7: 2 | B7: 文龙街道 | C7: 吹家扁支路至柿子湾 | E7: 吹家扁支路 | F7: 柿子湾 | G7: 2 | H7: 4.5 | I7: 太公村7、8组 | J7: 否 | K7: 否
A8: 3 | B8: 文龙街道 | C8: 古龙湾至水桶湾 | E8: 古龙湾 | F8: 水桶湾 | G8: 1 | H8: 4.5 | I8: 东五村10组 | J8: 否 | K8: 否
A9: 4 | B9: 文龙街道 | C9: 村劝导站至团山子 | E9: 村劝导站 | F9: 团山子 | G9: 0.4 | H9: 4.5 | I9: 东五村6组 | J9: 否 | K9: 否
A10: 二 | B10: 文龙街道小计 | G10: =SUM(G6:G9) -> 5.6
A11: 1 | B11: 三江街道 | C11: 罗坝村岚垭支路 | E11: 回龙湾 | F11: 岚垭 | G11: 0.6 | H11: 4.5 | I11: 罗坝村5组 | J11: 否 | K11: 否
A12: 2 | B12: 三江街道 | C12: 黄荆村黄新公路 | E12: 黄荆五社落叶坡 | F12: 新联村高铁桥 | G12: 0.35 | H12: 4.5 | I12: 黄荆村2组 | J12: 否 | K12: 否
A13: 3 | B13: 三江街道 | C13: 寨门村垭口支路 | E13: 老学校 | F13: 垭口上 | G13: 0.35 | H13: 4.5 | I13: 寨门村3组 | J13: 否 | K13: 否
A14: 4 | B14: 三江街道 | C14: 大垭村大大路 | E14: 大坵 | F14: 大坪子 | G14: 1.2 | H14: 4.5 | I14: 大垭村11组 | J14: 否 | K14: 否
A15: 5 | B15: 三江街道 | C15: 黄荆村7社支路 | D15: CF49、CN82 | E15: 晒谷坝 | F15: 蒙子岚垭 | G15: 1.2 | H15: 4.5 | I15: 黄荆村7组 | J15: 否 | K15: 否
A16: 6 | B16: 三江街道 | C16: 黄荆村母村坝公路 | D16: CC79 | E16: 出口丘 | F16: 天神庙 | G16: 1.3 | H16: 4.5 | I16: 黄荆村2组 | J16: 否 | K16: 否
A17: 三 | B17: 三江街道小计 | G17: =SUM(G11:G16) -> 5
A18: 1 | B18: 通惠街道 | C18: 登瀛场口-斜桥-大岚垭 | D18: CL08- CL11 | E18: 登瀛场口 | F18: 大岚垭 | G18: 3 | H18: 4.5 | I18: 登瀛组区1组 | J18: 否 | K18: 否
A19: 2 | B19: 通惠街道 | C19: 狗洞河沟-庆水台 | D19: C0C1 | E19: 狗洞河沟 | F19: 庆水台 | G19: 0.5 | H19: 4.5 | I19: 三桥村十三组 | J19: 否 | K19: 否
A20: 4 | B20: 通惠街道 | C20: 涵洞-院子岩 | E20: 涵洞 | F20: 院子岩 | G20: 0.45 | H20: 4.5 | I20: 玉龙村1组 | J20: 否 | K20: 否
A21: 5 | B21: 通惠街道 | C21: 上湾-转关口大桥头 | E21: 上湾 | F21: 转关口大桥头 | G21: 2.6 | H21: 4.5 | I21: 玉龙村10组、8组、6组、7组 | J21: 否 | K21: 否
A22: 四 | B22: 通惠街道小计 | G22: =SUM(G18:G21) -> 6.55
A23: 1 | B23: 石角镇 | C23: 砖房-桐子林 | E23: 砖房 | F23: 桐子林 | G23: 3.81 | H23: 4.5 | I23: 砖房村1、3、5组 | J23: 是 | K23: 否
A24: 2 | B24: 石角镇 | C24: 蒲河-曹房 | D24: CZDR、CZDT、CZDW、CZDV、CZDU | E24: 蒲河 | F24: 曹房 | G24: 2.9 | H24: 4.5 | I24: 石河村1组 | J24: 是 | K24: 否
A25: 3 | B25: 石角镇 | C25: 石刘路-上杨岩 | D25: CS13 | E25: 石刘路 | F25: 上杨岩 | G25: 1.1 | H25: 4.5 | I25: 丰岩村3组 | J25: 否 | K25: 否
A26: 五 | B26: 石角镇小计 | G26: =SUM(G23:G25) -> 7.81
A27: 1 | B27: 东溪镇 | C27: 料场-天平 | E27: 料场 | F27: 天平 | G27: 0.95 | H27: 4.5 | I27: 大榜村6组 | J27: 否 | K27: 否
A28: 2 | B28: 东溪镇 | C28: 大岗-三角田 | E28: 大岗 | F28: 三角田 | G28: 1.2 | H28: 4.5 | I28: 大榜村11组 | J28: 否 | K28: 否
A29: 3 | B29: 东溪镇 | C29: 湾兜-草树坪 | E29: 湾兜 | F29: 草树坪 | G29: 0.8 | H29: 4.5 | I29: 永乐村10组 | J29: 否 | K29: 否
A30: 4 | B30: 东溪镇 | C30: 狮叶林-桐子湾 | E30: 6组狮叶林 | F30: 桐子湾 | G30: 0.84 | H30: 4.5 | I30: 上榜村6、7组 | J30: 否 | K30: 否
A31: 5 | B31: 东溪镇 | C31: 钟家湾-杨柳湾 | E31: 钟家湾 | F31: 杨柳湾 | G31: 1 | H31: 4.5 | I31: 新石村2组 | J31: 否 | K31: 否
A32: 6 | B32: 东溪镇 | C32: 大土榜-河嘴 | E32: 大土榜 | F32: 河嘴 | G32: 1.1 | H32: 4.5 | I32: 新石村2组 | J32: 否 | K32: 否
A33: 7 | B33: 东溪镇 | C33: 石盘-小田坝 | E33: 石盘 | F33: 小田坝 | G33: 1.8 | H33: 4.5 | I33: 白云寺村10组 | J33: 否 | K33: 否
A34: 8 | B34: 东溪镇 | C34: 杜家林公路 | E34: 乐丁路 | F34: 大榜 | G34: 0.95 | H34: 4.5 | I34: 白云寺村11组 | J34: 否 | K34: 否
A35: 9 | B35: 东溪镇 | C35: 烂湾路 | E35: 帅培生河沟 | F35: 梧桐台 | G35: 0.7 | H35: 4.5 | I35: 白云寺村12组 | J35: 否 | K35: 否
A36: 12 | B36: 东溪镇 | C36: 库尔丘-尧草岗 | E36: 库尔丘 | F36: 尧草岗 | G36: 0.6 | H36: 4.5 | I36: 长堰村6组 | J36: 否 | K36: 否
A37: 13 | B37: 东溪镇 | C37: 何家岗-烂湾 | E37: 何家岗 | F37: 烂湾 | G37: 0.9 | H37: 4.5 | I37: 长堰村4组 | J37: 否 | K37: 否
A38: 14 | B38: 东溪镇 | C38: 大土-破石缸 | E38: 大土 | F38: 破石缸 | G38: 1 | H38: 4.5 | I38: 结农村5组 | J38: 否 | K38: 否
A39: 26 | B39: 东溪镇 | C39: 小湾公路 | E39: 水井湾 | F39: 小湾 | G39: 0.6 | H39: 4.5 | I39: 上书村12组 | J39: 否 | K39: 否
A40: 六 | B40: 东溪镇小计 | G40: =SUM(G27:G39) -> 12.44
A41: 1 | B41: 赶水镇 | C41: 庙林湾路口-庙林湾/高铁路口-铜佛学校-二级路延长段 | E41: 铜佛学校 | F41: 高铁路口 | G41: 0.25 | H41: 4.5 | I41: 香山村2组 | J41: 否 | K41: 否
A42: 2 | B42: 赶水镇 | C42: 高台-岩青岗 | E42: 高台 | F42: 岩青岗 | G42: 0.45 | H42: 4.5 | I42: 风门村3组 | J42: 否 | K42: 否
A43: 3 | B43: 赶水镇 | C43: 小弯弯-王家榜 | D43: CZ87 | E43: 小弯弯 | F43: 王家榜 | G43: 1.3 | H43: 4.5 | I43: 南坪村3、4组 | J43: 否 | K43: 否
A44: 4 | B44: 赶水镇 | C44: 石老婆-水厂 | E44: 石老婆 | F44: 水厂 | G44: 3.58 | H44: 4.5 | I44: 麻柳村4、5、6组 | J44: 否 | K44: 否
A45: 5 | B45: 赶水镇 | C45: 菜站-红砖厂 | E45: 菜站 | F45: 红砖厂 | G45: 2.3 | H45: 4.5 | I45: 铁石垭村2、4、8组 | J45: 否 | K45: 否
A46: 6 | B46: 赶水镇 | C46: 雷打山-学校 | D46: CZ78 | E46: 雷打山 | F46: 学校 | G46: 2.2 | H46: 4.5 | I46: 适中村1、5组 | J46: 否 | K46: 否
A47: 7 | B47: 赶水镇 | C47: 小湾-新田湾 | E47: 小湾 | F47: 新田湾 | G47: 2.5 | H47: 4.5 | I47: 岔滩村1、3、6组 | J47: 否 | K47: 否
A48: 七 | B48: 赶水镇小计 | G48: =SUM(G41:G47) -> 12.58
A49: 1 | B49: 打通镇 | C49: 双龙湾-新池村养鸡场 | E49: 双龙湾 | F49: 养鸡场 | G49: 3.27 | H49: 4.5 | I49: 双坝村1、4组，吹角村2、3组 | J49: 否 | K49: 否
A50: 2 | B50: 打通镇 | C50: 埋头湾-岩窝 | E50: 埋头湾 | F50: 岩窝 | G50: 3.51 | H50: 4.5 | I50: 余家村9、10组，荣华村11组 | J50: 否 | K50: 否
A51: 3 | B51: 打通镇 | C51: 黄家岗-李家榜 | E51: 黄家岗 | F51: 李家榜 | G51: 3.55 | H51: 4.5 | I51: 余家村6组、8组、11组 | J51: 否 | K51: 否
A52: 八 | B52: 打通镇小计 | G52: =SUM(G49:G51) -> 10.33
A53: 1 | B53: 石壕镇 | C53: 半坡路延长段 | E53: 石园桥 | F53: 水井湾 | G53: 0.23 | H53: 4.5 | I53: 羊叉村4组 | J53: 否 | K53: 否
A54: 2 | B54: 石壕镇 | C54: 香树坪-梅树坎 | E54: 香树坪 | F54: 梅树坎 | G54: 1.02 | H54: 4.5 | I54: 香树村2组 | J54: 否 | K54: 否
A55: 3 | B55: 石壕镇 | C55: 水池-黄家屋基 | E55: 水池 | F55: 黄家屋基 | G55: 0.85 | H55: 3.5 | I55: 长征村10组 | J55: 否 | K55: 否
A56: 4 | B56: 石壕镇 | C56: 石壕村连接路 | E56: 石板凳 | F56: 榜上 | G56: 1 | H56: 4.5 | I56: 石壕村 | J56: 否 | K56: 否
A57: 5 | B57: 石壕镇 | C57: 马村坪-山王庙 | E57: 马村坪 | F57: 山王庙 | G57: 2 | H57: 5 | I57: 紫龙村1组 | J57: 否 | K57: 否
A58: 9 | B58: 石壕镇 | C58: 高儿窝凼-彭家坳 | E58: 高儿窝凼 | F58: 彭家坳 | G58: 2.3 | H58: 4.5 | I58: 万隆村1、3组 | J58: 否 | K58: 否
A59: 12 | B59: 石壕镇 | C59: 香树岩脚公路硬化 | E59: 柏阳坪 | F59: 陈家屋基 | G59: 1.7 | H59: 4.5 | I59: 香树村1组 | J59: 否 | K59: 否
A60: 九 | B60: 石壕镇小计 | G60: =SUM(G53:G59) -> 9.1
A61: 1 | B61: 永新镇 | C61: 田家池塘-思立沟 | E61: 田家池塘 | F61: 思立沟 | G61: 1.4 | H61: 4.5 | I61: 长田村庙湾组 | J61: 否 | K61: 否
A62: 2 | B62: 永新镇 | C62: 庙湾-朱家山 | E62: 庙湾 | F62: 朱家山 | G62: 2.6 | H62: 4.5 | I62: 长田村朱家山组 | J62: 是 | K62: 否
A63: 3 | B63: 永新镇 | C63: 瓦厂-许家沟 | E63: 瓦厂 | F63: 许家沟 | G63: 3.45 | H63: 4.5 | I63: 沾滩村许家沟组 | J63: 是 | K63: 否
A64: 8 | B64: 永新镇 | C64: 皂角林-粮店 | E64: 粮店 | F64: 皂角林 | G64: 0.7 | H64: 4.5 | I64: 荆山村皂角林组 | J64: 否 | K64: 否
A65: 9 | B65: 永新镇 | C65: 双山组面房-打水撵 | E65: 双山组面房 | F65: 染坊 | G65: 1.8 | H65: 4.5 | I65: 紫荆村村双山组 | J65: 否 | K65: 否
A66: 10 | B66: 永新镇 | C66: 球场坝子-刘家嘴 | E66: 球场坝子 | F66: 刘家嘴 | G66: 1.4 | H66: 4.5 | I66: 紫荆村海棠湾组 | J66: 否 | K66: 否
A67: 19 | B67: 永新镇 | C67: 新房子-响水洞 | E67: 新房子 | F67: 响水洞 | G67: 1.6 | H67: 4.5 | I67: 上厂村陈家山、苏氏祠组 | J67: 否 | K67: 否
A68: 十 | B68: 永新镇小计 | G68: =SUM(G61:G67) -> 12.95
A69: 1 | B69: 三角镇 | C69: 望石学校-苦竹沟 | D69: CF13 | E69: 望石学校 | F69: 苦竹沟 | G69: 3.26 | H69: 4.5 | I69: 望石村土地沟组 | J69: 否 | K69: 否
A70: 2 | B70: 三角镇 | C70: 马路口-芭蕉湾 | D70: CN69 | E70: 马路口 | F70: 芭蕉湾 | G70: 2 | H70: 4.5 | I70: 石栏村马路口组 | J70: 否 | K70: 否
A71: 3 | B71: 三角镇 | C71: 下湾鱼塘-黄生沟 | D71: CN56、CN57 | E71: 下湾鱼塘 | F71: 骆家咀 | G71: 1.5 | H71: 4.5 | I71: 东岳村黄生沟组 | J71: 否 | K71: 是
A72: 4 | B72: 三角镇 | C72: 后沟-狮子头 | D72: CS44 | E72: 后沟 | F72: 麦土湾 | G72: 1.45 | H72: 4.5 | I72: 龙门村杨家湾组 | J72: 否 | K72: 否
A73: 十一 | B73: 三角镇小计 | G73: =SUM(G69:G72) -> 8.21
A74: 1 | B74: 隆盛镇 | C74: 安子沟水库-新房子思林湾 | E74: 安子沟水库 | F74: 思林湾 | G74: 2.3 | H74: 4.5 | I74: 顺山村安子沟、王家榜组 | J74: 否 | K74: 否
A75: 2 | B75: 隆盛镇 | C75: 杨家寨-河嘴 | E75: 杨家寨 | F75: 河嘴 | G75: 1.5 | H75: 4.5 | I75: 振兴村大院子组 | J75: 否 | K75: 否
A76: 3 | B76: 隆盛镇 | C76: 芋河沟-新房子 | E76: 芋河沟 | F76: 新房子 | G76: 0.3 | H76: 4.5 | I76: 长春村芋河沟组 | J76: 否 | K76: 否
A77: 十二 | B77: 隆盛镇小计 | G77: =SUM(G74:G76) -> 4.1
A78: 1 | B78: 郭扶镇 | C78: 礼庆岩-花土岗 | E78: 礼庆岩 | F78: 花土岗 | G78: 2.6 | H78: 4.5 | I78: 安平村2组，银盆村4组 | J78: 否 | K78: 否
A79: 2 | B79: 郭扶镇 | C79: 学校嘴嘴-杨家嘴 | E79: 学校嘴嘴 | F79: 杨家嘴 | G79: 1.35 | H79: 4.5 | I79: 永胜村5、6组 | J79: 否 | K79: 否
A80: 3 | B80: 郭扶镇 | C80: 陈家湾-湾的 | E80: 陈家湾 | F80: 湾的 | G80: 2.58 | H80: 4.5 | I80: 骑龙村1、9、10组 | J80: 否 | K80: 否
A81: 4 | B81: 郭扶镇 | C81: 变压房-猴子坪 | D81: C3H5 | E81: 变压房 | F81: 猴子坪 | G81: 1.63 | H81: 4.5 | I81: 龙台村10组 | J81: 否 | K81: 否
A82: 5 | B82: 郭扶镇 | C82: 小河坝-河大屋基 | E82: 小河坝 | F82: 河大屋基 | G82: 2 | H82: 4.5 | I82: 人和村5组 | J82: 否 | K82: 否
A83: 6 | B83: 郭扶镇 | C83: 高青高庙之路-双碾槽 | D83: CC36 | E83: 高青高庙之路 | F83: 双碾槽 | G83: 0.85 | H83: 4.5 | I83: 双山村3组 | J83: 否 | K83: 否
A84: 7 | B84: 郭扶镇 | C84: 张家湾-柿子坪 | E84: 张家湾 | F84: 柿子坪 | G84: 1.74 | H84: 4.5 | I84: 龙泉村1组、2组、3组、7组、10组 | J84: 否 | K84: 否
A85: 十三 | B85: 郭扶镇小计 | G85: =SUM(G78:G84) -> 12.75
A86: 1 | B86: 篆塘镇 | C86: 狮子湾-幺毛杠 | E86: 狮子湾 | F86: 幺毛杠 | G86: 1.31 | H86: 4.5 | I86: 陶家村3组 | J86: 否 | K86: 否
A87: 2 | B87: 篆塘镇 | C87: 大坪子-猫林岗 | E87: 大坪子 | F87: 猫林岗 | G87: 2 | H87: 4.5 | I87: 联合村1、3组 | J87: 否 | K87: 否
A88: 3 | B88: 篆塘镇 | C88: 白家庄-果园 | E88: 白家庄 | F88: 果园 | G88: 1.3 | H88: 4.5 | I88: 鱼梁村3组 | J88: 否 | K88: 否
A89: 4 | B89: 篆塘镇 | C89: 寿坝-龙塘 | E89: 寿坝 | F89: 龙塘 | G89: 1.4 | H89: 4.5 | I89: 遥河村2、4、8、10组 | J89: 否 | K89: 否
A90: 十四 | B90: 篆塘镇小计 | G90: =SUM(G86:G89) -> 6.01
A91: 1 | B91: 安稳镇 | C91: 何在明-团山堡 | E91: 何在明 | F91: 团山堡 | G91: 3.5 | H91: 4.5 | I91: 召台村2组 | J91: 否 | K91: 是
A92: 2 | B92: 安稳镇 | C92: 羊场公路 | E92: 羊场 | F92: 沈家沟 | G92: 2.5 | H92: 4.5 | I92: 大堰村5组 | J92: 是 | K92: 是
A93: 3 | B93: 安稳镇 | C93: 吴家沟-屋基坪 | E93: 吴家沟 | F93: 屋基坪 | G93: 1.2 | H93: 4.5 | I93: 崇河村7组 | J93: 否 | K93: 是
A94: 十五 | B94: 安稳镇小计 | G94: =SUM(G91:G93) -> 7.2
A95: 1 | B95: 扶欢镇 | C95: 崇恩村代家坡-沙坪公路 | D95: CI18 | E95: 代家坡 | F95: 沙坪 | G95: 1.89 | H95: 4.5 | I95: 崇恩村 3、4组 | J95: 否 | K95: 否
A96: 2 | B96: 扶欢镇 | C96: 长榜村小坪-席家田 公路 | E96: 小坪 | F96: 席家田 | G96: 0.79 | H96: 4.5 | I96: 长榜村3组 | J96: 否 | K96: 否
A97: 3 | B97: 扶欢镇 | C97: 文峰村5组通畅公路 | E97: 石庙 | F97: 黄角树湾 | G97: 1.99 | H97: 4.5 | I97: 文峰村5组 | J97: 否 | K97: 否
A98: 4 | B98: 扶欢镇 | C98: 万梨路-烟斗山 | E98: 万梨路 | F98: 烟斗山 | G98: 0.3 | H98: 4.5 | I98: 大石板村7组 | J98: 否 | K98: 否
A99: 5 | B99: 扶欢镇 | C99: 岚垭村牛栏椿-滩子口公路 | E99: 牛栏椿 | F99: 滩子口 | G99: 2.15 | H99: 4.5 | I99: 岚垭村15组 | J99: 否 | K99: 否
A100: 6 | B100: 扶欢镇 | C100: 松山村狮子岩-电厂公路 | E100: 狮子岩 | F100: 电厂 | G100: 0.37 | H100: 4.5 | I100: 松山村1组 | J100: 否 | K100: 否
A101: 7 | B101: 扶欢镇 | C101: 松山村两扶路-两河口电厂公路 | E101: 两扶路 | F101: 两河口 电厂 | G101: 0.49 | H101: 4.5 | I101: 松山村3组 | J101: 否 | K101: 否
A102: 十六 | B102: 扶欢镇小计 | G102: =SUM(G95:G101) -> 7.98
A103: 1 | B103: 永城镇 | C103: 杨家鱼塘至土地坝 | E103: 杨家鱼塘 | F103: 土地坝 | G103: 0.8 | H103: 4.5 | I103: 复兴村铁炉湾组 | J103: 否 | K103: 否
A104: 2 | B104: 永城镇 | C104: 永庆电子厂一苦竹沟 | E104: 永庆电子厂 | F104: 苦竹沟 | G104: 0.5 | H104: 4.5 | I104: 黄沙村下坝组 | J104: 否 | K104: 否
A105: 3 | B105: 永城镇 | C105: 三元庄--高石岩 | E105: 三元庄 | F105: 高石岩 | G105: 1 | H105: 4.5 | I105: 大桥村李家湾组 | J105: 否 | K105: 否
A106: 4 | B106: 永城镇 | C106: 台子上（红砖厂）-芙蓉书院（萝卜岩） | E106: 倒场坝 | F106: 芙蓉书院 | G106: 3 | H106: 4.5 | I106: 瀛山村龙井湾组 | J106: 是 | K106: 否
A107: 5 | B107: 永城镇 | C107: 大草河沟-水井沟 | E107: 大草河沟 | F107: 水井沟 | G107: 0.6 | H107: 4.5 | I107: 永和村范家堡组 | J107: 否 | K107: 否
A108: 十七 | B108: 永城镇小计 | G108: =SUM(G103:G107) -> 5.9
A109: 1 | B109: 中峰镇 | C109: 石板上-天桥 | E109: 石板上 | F109: 天桥 | G109: 3 | H109: 4.5 | I109: 新庄村张家林组 | J109: 否 | K109: 否
A110: 十八 | B110: 中峰镇小计 | G110: =SUM(G109:G109) -> 3
A111: 1 | B111: 横山镇 | C111: 院子公路 | E111: 环线 | F111: 院子 | G111: 0.7 | H111: 4.5 | I111: 大坪村院子组 | J111: 否 | K111: 否
A112: 2 | B112: 横山镇 | C112: 生基湾-岩洞子公路 | E112: 生基湾社 | F112: 岩洞子社 | G112: 3.8 | H112: 4.5 | I112: 大坪村生基湾、岩洞子、张家沟组 | J112: 否 | K112: 否
A113: 3 | B113: 横山镇 | C113: 新寨小筑公路 | E113: 学校 | F113: 新寨小筑 | G113: 0.4 | H113: 4.5 | I113: 新寨村黄家咀组 | J113: 否 | K113: 否
A114: 十九 | B114: 横山镇小计 | G114: =SUM(G111:G113) -> 4.9
A115: 1 | B115: 打通镇 | C115: 沿河水厂旁-生基湾 | E115: 沿河水厂 | F115: 生基湾 | G115: 0.82 | H115: 4.5 | I115: 沿河村龙洞口、吹角村喻家坡组 | J115: 否 | K115: 否 | L115: 由重庆市綦江区广大农业公司负责实施
A116: 2 | B116: 石角镇 | C116: 草棚岗-柏杨湾 | E116: 草棚岗 | F116: 柏杨湾 | G116: 0.9 | H116: 4.5 | I116: 回伍村三组 | J116: 否 | K116: 否
A117: 3 | B117: 隆盛镇 | C117: 水鸭池-央田湾 | E117: 水鸭池 | F117: 央田湾 | G117: 0.81 | H117: 4.5 | I117: 狮岭村水鸭池组 | J117: 否 | K117: 否
A118: 4 | B118: 丁山镇 | C118: 人头石-电厂 | E118: 人头石 | F118: 电厂 | G118: 0.51 | H118: 4.5 | I118: 保元村5社 | J118: 否 | K118: 否 | L118: 由重庆市綦江区国有林场负责实施
A119: 5 | B119: 赶水镇 | C119: 果园-东山井消防水池 | E119: 果园 | F119: 东山井消防水池 | G119: 0.78 | H119: 4.5 | I119: 岔滩村3社 | J119: 否 | K119: 否
A120: 6 | B120: 赶水镇 | C120: 板厂沟水库-刘辉元房屋 | E120: 板厂沟水库 | F120: 刘辉元房屋 | G120: 1.2 | H120: 4.5 | I120: 石房村6社 | J120: 否 | K120: 否
A121: 7 | B121: 石角镇 | C121: 沙丘-敖家岚垭 | E121: 沙丘 | F121: 敖家岚垭 | G121: 4.1 | H121: 4.5 | I121: 下湾村、石河村 | J121: 否 | K121: 否
A122: 二十 | B122: 其它项目小计 | G122: =SUM(G115:G121) -> 9.12
B123: 合计 | G123: =G114+G110+G108+G102+G94+G90+G85+G77+G73+G68+G60+G52+G48+G40+G26+G22+G17+G10+G5+G122 -> 154.63

Sheet Sheet3
B1: 永新镇 | C1: 田家池塘-思立沟 | E1: 田家池塘 | F1: 思立沟 | G1: 1.4 | H1: 4.5 | I1: 长田村庙湾组
B2: 永新镇 | C2: 庙湾-朱家山 | E2: 庙湾 | F2: 朱家山 | G2: 2.6 | H2: 4.5 | I2: 长田村朱家山组
B3: 永新镇 | C3: 瓦厂-许家沟 | E3: 瓦厂 | F3: 许家沟 | G3: 3.45 | H3: 4.5 | I3: 沾滩村许家沟
B4: 永新镇 | C4: 上坝-瓦房 | E4: 上坝 | F4: 瓦房 | G4: 3.2 | H4: 4.5 | I4: 八景村白果湾组
B5: 永新镇 | C5: 沿河村-楼房坝 | E5: 沿河村 | F5: 楼房坝 | G5: 1.45 | H5: 4.5 | I5: 清溪村明月沟组
B6: 永新镇 | C6: 大岚垭—王家石匠湾 | E6: 大岚垭 | F6: 王家石匠湾 | G6: 1.3 | H6: 4.5 | I6: 新建村农科队组
B7: 永新镇 | C7: 新湾-夏坝堤坝 | E7: 新湾路口 | F7: 夏坝堤坝 | G7: 2.8 | H7: 4.5 | I7: 木瓜村高洞子组
B8: 永新镇 | C8: 皂角林-粮店 | E8: 粮店 | F8: 皂角林 | G8: 0.7 | H8: 4.5 | I8: 荆山村皂角林
B9: 永新镇 | C9: 双山组面房-打水撵 | E9: 双山组面房 | F9: 染坊 | G9: 1.8 | H9: 4.5 | I9: 紫荆村村双山组
B10: 永新镇 | C10: 球场坝子-刘家嘴 | E10: 球场坝子 | F10: 刘家嘴 | G10: 1.4 | H10: 4.5 | I10: 紫荆村海棠湾组
B11: 永新镇 | C11: 马山岗-生田湾 | E11: 马山岗 | F11: 生田湾 | G11: 0.65 | H11: 4.5 | I11: 望场社区开山坝组
B12: 永新镇 | C12: 新庄-火烧湾 | E12: 新庄 | F12: 火烧湾 | G12: 0.6 | H12: 4.5 | I12: 望场社区新庄组
B13: 永新镇 | C13: 大桐公路 | E13: 大屋 | F13: 桐子林 | G13: 2.8 | H13: 4.5 | I13: 建设村桐子林
B14: 永新镇 | C14: 龙家沟-老灵岗 | E14: 老灵岗 | F14: 龙家沟 | G14: 1.2 | H14: 4.5 | I14: 荆山村沙榜上
B15: 永新镇 | C15: 老灵岗-田榜上 | E15: 老灵岗 | F15: 田榜上 | G15: 1.2 | H15: 4.5 | I15: 荆山村上院子
B16: 永新镇 | C16: 小屋基-半坡 | E16: 小屋基 | F16: 半坡 | G16: 2.2 | H16: 4.5 | I16: 三合村砖房组
B17: 永新镇 | C17: 小坪子路 | E17: 桃子坪 | F17: 路仓 | G17: 1.7 | H17: 4.5 | I17: 利群村张家嘴组
B18: 永新镇 | C18: 昌坟岗-碳厂湾-石岗沟-王家山 | E18: 昌坟岗 | F18: 王家山 | G18: 2.2 | H18: 4.5 | I18: 上厂村苏氏祠组、大屋基组
B19: 永新镇 | C19: 新房子—响水洞 | E19: 新房子 | F19: 响水洞 | G19: 1.6 | H19: 4.5 | I19: 上厂村陈家山社、苏氏祠社
B20: 永新镇 | C20: 老龄岗-柏子店 | E20: 老龄岗 | F20: 柏子店 | G20: 1.56 | H20: 4.5 | I20: 新建村甘家山
B21: 永新镇 | C21: 瑶湾公路 | E21: 沙榜 | F21: 瑶湾 | G21: 0.5 | H21: 4.5 | I21: 石塔村伏龙湾组
B22: 永新镇 | C22: 天坪上-八块田 | E22: 天坪上 | F22: 八块田 | G22: 1.5 | H22: 4.5 | I22: 紫荆村坪上组
B23: 永新镇 | C23: 堆钱宝-瓦尧邱 | E23: 堆钱宝 | F23: 瓦尧邱 | G23: 1.5 | H23: 4.5 | I23: 紫荆村瓦房组
B24: 永新镇 | C24: 新房子-张观土 | E24: 新房子 | F24: 张观土 | G24: 1 | H24: 4.5 | I24: 紫荆村瓦房组
B25: 永新镇 | C25: 滩口―岚亚岗 | E25: 滩口 | F25: 岚亚岗 | G25: 1 | H25: 4.5 | I25: 新胜村陈家咀组
B26: 永新镇 | C26: 罗盘邱-黄家湾 | E26: 罗盘邱 | F26: 黄家湾 | G26: 1 | H26: 4.5 | I26: 紫荆村坪上组
B27: 永新镇 | C27: 紫荆蚕茧站-新街 | E27: 蚕茧站 | F27: 紫荆新街 | G27: 0.8 | H27: 4.5 | I27: 紫荆村街道
B28: 永新镇 | C28: 石良上-杨家湾 | E28: 石良上 | F28: 杨家湾 | G28: 0.5 | H28: 4.5 | I28: 沾滩村杨家湾
B29: 永新镇 | C29: 猪场-铜板田 | E29: 猪场 | F29: 铜板田 | G29: 0.5 | H29: 4.5 | I29: 沾滩村学堂
B30: 永新镇 | C30: 松林坪-新院子 | E30: 松林坪 | F30: 新院子 | G30: 0.4 | H30: 4.5 | I30: 沾滩村松林坪
B31: 永新镇 | C31: 黄谷路 | E31: 黄草沟 | F31: 谷麻湾 | G31: 0.7 | H31: 4.5 | I31: 利群村下坝组
B32: 永新镇 | C32: 石立路 | E32: 鸡冠石 | F32: 立石 | G32: 0.65 | H32: 4.5 | I32: 利群村庆口组
